[Event "4th Baskent University Open 2019"]
[Site "Ankara"]
[Date "2019.06.21"]
[Round "7"]
[White "Cevizci, Yusuf Baran"]
[Black "Alpman, Gokay Evren"]
[Result "1/2-1/2"]
[ECO "C02"]
[WhiteElo "1670"]
[BlackElo "1647"]
[Annotator "NA RC"]
[PlyCount "90"]
[EventDate "2019.06.18"]
[EventType "swiss"]
[EventCountry "TUR"]
[SourceTitle "playchess.com"]
[Source "ChessBase"]
[SourceQuality "1"]
[TimeControl "5400+30"]

1. e4 {[%emt 0:00:30]} e6 {[%emt 0:00:30]} 2. d4 {[%emt 0:00:30]} d5 {[%emt 0:00:30]} 3. e5 {[%emt 0:00:00]} c5 {[%emt 0:00:30]} 4. c3 {[%emt 0:00:00]} Nc6 {[%emt 0:00:00]} 5. Nf3 {[%emt 0:00:30]} Qb6 {[%emt 0:00:00]} 6. Na3 {[%emt 0:01:30]} cxd4 {[%emt 0:02:30]} 7. cxd4 {[%emt 0:00:00]} Bxa3 {[%emt 0:02:30]} 8. bxa3 {[%emt 0:00:00]} Qa5+ {[%emt 0:04:30]} 9. Qd2 {[%emt 0:00:30]} Bd7 {[%emt 0:03:30]} 10. Rb1 {[%emt 0:00:30]} Rb8 {[%emt 0:04:30]} 11. Bd3 {[%emt 0:02:30]} Nge7 {[%emt 0:01:30]} 12. O-O {[%emt 0:00:30]} Qxd2 {[%emt 0:00:30]} 13. Bxd2 {[%emt 0:00:30]} O-O {[%emt 0:01:30]} 14. Rfc1 {[%emt 0:03:30]} Rfc8 {[%emt 0:01:30]} 15. Bb4 {[%emt 0:00:30]} Nxb4 {[%emt 0:03:30]} 16. axb4 {[%emt 0:00:00]} a6 {[%emt 0:04:30]} 17. Nd2 {[%emt 0:00:00]} Ba4 {[%emt 0:05:30]} 18. Rc5 {[%emt 0:02:30]} Rc6 {[%emt 0:08:30]} 19. Rxc6 {[%emt 0:24:30]} Nxc6 {[%emt 0:02:30]} 20. Nf3 {[%emt 0:00:30]} Na7 {[%emt 0:01:30]} 21. Rc1 {[%emt 0:00:30]} Rc8 {[%emt 0:00:00]} 22. Rxc8+ {[%emt 0:05:30]} Nxc8 {[%emt 0:00:00]} 23. Kf1 {[%emt 0:00:30]} h6 {[%emt 0:01:30]} 24. Ke2 {[%emt 0:00:30]} Kf8 {[%emt 0:00:30]} 25. Ke3 {[%emt 0:00:00]} Ke7 {[%emt 0:00:30]} 26. g4 {[%emt 0:01:00]} Na7 {[%emt 0:00:30]} 27. Ne1 {[%emt 0:00:30]} Nc6 {[%emt 0:01:30]} 28. a3 {[%emt 0:03:30]} Na7 {[%emt 0:02:30]} 29. f4 {[%emt 0:00:30]} g6 {[%emt 0:03:30]} 30. Ng2 {[%emt 0:00:30]} Bd1 {[%emt 0:03:30]} 31. h3 {[%emt 0:07:30]} h5 {[%emt 0:03:30]} 32. g5 {[%emt 0:02:30]} Kf8 {[%emt 0:03:30]} 33. Kd2 {[%emt 0:00:30]} Ba4 {[%emt 0:00:30]} 34. Ne1 {[%emt 0:01:30]} Ke7 {[%emt 0:01:30]} 35. Be2 {[%emt 0:00:30]} Nc6 {[%emt 0:02:30]} 36. Kc3 {[%emt 0:01:30]} Na7 {[%emt 0:01:30]} 37. h4 {[%emt 0:00:30]} Bb5 {[%emt 0:00:30]} 38. Bd3 {[%emt 0:00:00]} Bxd3 {[%emt 0:01:30]} 39. Kxd3 {[%emt 0:00:00]} Nc6 {[%emt 0:04:30]} 40. Kc3 {[%emt 0:00:00]} Kd7 {[%emt 0:01:30]} 41. Nd3 {[%emt 0:00:00]} b6 {[%emt 0:00:00]} 42. Ne1 {[%emt 0:01:30]} Ne7 {[%emt 0:01:00]} 43. Ng2 {[%emt 0:00:30]} Nf5 {[%emt 0:00:00]} 44. a4 {[%emt 0:00:30]} Kc6 {[%emt 0:01:00]} 45. Kd3 {[%emt 0:00:00]} Kd7 {[%emt 0:04:30]} 1/2-1/2

[Event "4th Baskent University Open 2019"]
[Site "Ankara"]
[Date "2019.06.21"]
[Round "7"]
[White "Ersahince, Umut Utku"]
[Black "Sarginalp, Tuna"]
[Result "0-1"]
[ECO "D30"]
[WhiteElo "1637"]
[BlackElo "1630"]
[Annotator "NA RC"]
[PlyCount "96"]
[EventDate "2019.06.18"]
[EventType "swiss"]
[EventCountry "TUR"]
[SourceTitle "playchess.com"]
[Source "ChessBase"]
[SourceQuality "1"]
[TimeControl "5400+30"]

1. Nf3 {[%emt 0:00:30]} d5 {[%emt 0:02:30]} 2. e3 {[%emt 0:00:00]} Nf6 {[%emt 0:01:30]} 3. c4 {[%emt 0:00:00]} e6 {[%emt 0:01:30]} 4. b3 {[%emt 0:00:30]} Nbd7 {[%emt 0:00:30]} 5. Bb2 {[%emt 0:04:30]} c6 {[%emt 0:03:30]} 6. d4 {[%emt 0:03:30]} Bd6 {[%emt 0:14:30]} 7. Bd3 {[%emt 0:05:30]} O-O {[%emt 0:01:30]} 8. O-O {[%emt 0:00:30]} Ne4 {[%emt 0:01:30]} 9. Qc2 {[%emt 0:05:30]} f5 {[%emt 0:00:30]} 10. Ba3 {[%emt 0:01:30]} Bxa3 {[%emt 0:06:30]} 11. Nxa3 {[%emt 0:00:30]} Rf6 {[%emt 0:10:30]} 12. h4 {[%emt 0:38:30]} Rg6 {[%emt 0:02:30]} 13. Qb2 {[%emt 0:06:30]} Ndf6 {[%emt 0:04:30]} 14. Qc2 {[%emt 0:08:30]} Bd7 {[%emt 0:12:30]} 15. Rab1 {[%emt 0:03:14]} Rh6 {[%emt 0:07:30]} 16. g3 {[%emt 0:01:22]} Ng4 {[%emt 0:08:41]} 17. Kg2 {[%emt 0:01:44]} Nexf2 {[%emt 0:01:19]} 18. Qe2 {[%emt 0:01:47]} Qe7 {[%emt 0:05:23]} 19. c5 {[%emt 0:01:03]} Nxd3 {[%emt 0:01:23]} 20. Qxd3 {[%emt 0:00:07]} e5 {[%emt 0:01:22]} 21. dxe5 {[%emt 0:01:34]} Qxc5 {[%emt 0:01:43]} 22. Nc2 {[%emt 0:00:10]} Re8 {[%emt 0:00:11]} 23. Ncd4 {[%emt 0:09:06]} Nxe5 {[%emt 0:00:36]} 24. Nxe5 {[%emt 0:00:14]} Rxe5 {[%emt 0:00:00]} 25. Rbe1 {[%emt 0:01:19]} Rf6 {[%emt 0:01:46]} 26. Rf3 {[%emt 0:00:14]} Qe7 {[%emt 0:02:25]} 27. Ref1 {[%emt 0:02:35]} Re4 {[%emt 0:00:39]} 28. Qc3 {[%emt 0:01:54]} g6 {[%emt 0:03:44]} 29. Kf2 {[%emt 0:01:27]} c5 {[%emt 0:02:05]} 30. Nc2 {[%emt 0:00:39]} Bc6 {[%emt 0:00:44]} 31. a4 {[%emt 0:00:22]} Rfe6 {[%emt 0:00:48]} 32. Qa5 {[%emt 0:00:16]} d4 {[%emt 0:00:22]} 33. Qxa7 {[%emt 0:00:22]} dxe3+ {[%emt 0:00:15]} 34. Ke2 {[%emt 0:00:26]} Rd6 {[%emt 0:00:52]} 35. Rxe3 {[%emt 0:00:50]} Rxe3+ {[%emt 0:01:16]} 36. Nxe3 {[%emt 0:00:05]} Re6 {[%emt 0:00:18]} 37. Qb8+ {[%emt 0:00:05]} Kg7 {[%emt 0:00:18]} 38. Qf4 {[%emt 0:00:10]} Re4 {[%emt 0:00:00]} 39. Qf2 {[%emt 0:01:34]} Rb4 {[%emt 0:00:08]} 40. Rb1 {[%emt 0:00:40]} Bxa4 {[%emt 0:00:19]} 41. Qe1 {[%emt 0:00:09]} Bb5+ {[%emt 0:00:18]} 42. Kf2 {[%emt 0:00:11]} Qe5 {[%emt 0:01:38]} 43. Qd2 {[%emt 0:01:06]} Rd4 {[%emt 0:00:33]} 44. Qb2 {[%emt 0:00:59]} f4 {[%emt 0:00:12]} 45. Ng4 {[%emt 0:00:00]} fxg3+ {[%emt 0:00:15]} 46. Kg1 {[%emt 0:00:13]} Rd1+ {[%emt 0:00:52]} 47. Kg2 {[%emt 0:00:46]} Bc6+ {[%emt 0:00:04]} 48. Kh3 {[%emt 0:00:20]} Rh1+ {[%emt 0:00:08]} 0-1

[Event "4th Baskent University Open 2019"]
[Site "Ankara"]
[Date "2019.06.21"]
[Round "7"]
[White "Keseroglu, Yigit Can"]
[Black "Yilmaz, Hasan"]
[Result "1-0"]
[ECO "A25"]
[WhiteElo "1559"]
[BlackElo "1600"]
[Annotator "NA RC"]
[PlyCount "149"]
[EventDate "2019.06.18"]
[EventType "swiss"]
[EventCountry "TUR"]
[SourceTitle "playchess.com"]
[Source "ChessBase"]
[SourceQuality "1"]
[TimeControl "5400+30"]

1. c4 {[%emt 0:00:30]} e5 {[%emt 0:01:30]} 2. Nc3 {[%emt 0:00:30]} Nc6 {[%emt 0:01:30]} 3. g3 {[%emt 0:00:00]} Nf6 {[%emt 0:00:30]} 4. Bg2 {[%emt 0:00:00]} Bc5 {[%emt 0:01:30]} 5. e3 {[%emt 0:00:00]} d6 {[%emt 0:02:30]} 6. Nge2 {[%emt 0:10:00]} Be6 {[%emt 0:00:00]} 7. Nd5 {[%emt 0:04:30]} Bg4 {[%emt 0:12:00]} 8. d3 {[%emt 0:02:30]} a5 {[%emt 0:06:30]} 9. h3 {[%emt 0:07:30]} Bh5 {[%emt 0:00:30]} 10. a3 {[%emt 0:01:30]} Rb8 {[%emt 0:09:30]} 11. Bd2 {[%emt 0:01:30]} Bxe2 {[%emt 0:10:30]} 12. Kxe2 {[%emt 0:02:30]} O-O {[%emt 0:07:30]} 13. b4 {[%emt 0:00:00]} axb4 {[%emt 0:01:30]} 14. axb4 {[%emt 0:02:00]} Nxd5 {[%emt 0:00:30]} 15. bxc5 {[%emt 0:00:30]} Nf6 {[%emt 0:01:30]} 16. Bc3 {[%emt 0:06:30]} Re8 {[%emt 0:00:00]} 17. Qc2 {[%emt 0:13:30]} Nd4+ {[%emt 0:01:00]} 18. Bxd4 {[%emt 0:02:30]} exd4 {[%emt 0:00:30]} 19. cxd6 {[%emt 0:00:30]} dxe3 {[%emt 0:01:30]} 20. c5 {[%emt 0:15:30]} Nh5 {[%emt 0:04:30]} 21. Bf3 {[%emt 0:03:30]} Qg5 {[%emt 0:15:30]} 22. Rhg1 {[%emt 0:01:30]} cxd6 {[%emt 0:01:29]} 23. h4 {[%emt 0:02:30]} Qe5 {[%emt 0:04:10]} 24. Ra4 {[%emt 0:03:00]} exf2+ {[%emt 0:01:37]} 25. Kxf2 {[%emt 0:00:14]} Nf6 {[%emt 0:02:13]} 26. Rc4 {[%emt 0:03:33]} d5 {[%emt 0:00:30]} 27. Rb4 {[%emt 0:00:00]} d4 {[%emt 0:01:10]} 28. Qc4 {[%emt 0:02:43]} Nd7 {[%emt 0:04:10]} 29. Qxd4 {[%emt 0:07:31]} Nxc5 {[%emt 0:00:06]} 30. Kg2 {[%emt 0:00:07]} Qxd4 {[%emt 0:01:44]} 31. Rxd4 {[%emt 0:00:02]} Red8 {[%emt 0:00:05]} 32. Rxd8+ {[%emt 0:03:54]} Rxd8 {[%emt 0:00:30]} 33. Rc1 {[%emt 0:00:00]} b6 {[%emt 0:00:31]} 34. Rb1 {[%emt 0:00:00]} Rb8 {[%emt 0:01:53]} 35. d4 {[%emt 0:00:06]} Na4 {[%emt 0:00:48]} 36. Bc6 {[%emt 0:00:51]} Nc3 {[%emt 0:02:00]} 37. Rb3 {[%emt 0:00:49]} Ne2 {[%emt 0:01:18]} 38. Rd3 {[%emt 0:01:01]} Nc1 {[%emt 0:00:43]} 39. Rd1 {[%emt 0:00:04]} Nb3 {[%emt 0:00:18]} 40. d5 {[%emt 0:00:09]} Na5 {[%emt 0:01:58]} 41. Bb5 {[%emt 0:01:00]} Nb7 {[%emt 0:00:30]} 42. d6 {[%emt 0:00:00]} Kf8 {[%emt 0:00:34]} 43. Kf3 {[%emt 0:00:27]} Rd8 {[%emt 0:00:22]} 44. d7 {[%emt 0:01:00]} Ke7 {[%emt 0:01:02]} 45. Kf4 {[%emt 0:00:58]} Nc5 {[%emt 0:00:23]} 46. Re1+ {[%emt 0:00:55]} Kd6 {[%emt 0:00:01]} 47. Re8 {[%emt 0:00:46]} Kc7 {[%emt 0:00:03]} 48. Re7 {[%emt 0:00:15]} Ne6+ {[%emt 0:02:34]} 49. Ke5 {[%emt 0:00:17]} Nc5 {[%emt 0:00:42]} 50. Rxf7 {[%emt 0:01:11]} Nxd7+ {[%emt 0:00:30]} 51. Ke6 {[%emt 0:00:00]} Re8+ {[%emt 0:00:00]} 52. Kd5 {[%emt 0:00:18]} Re5+ {[%emt 0:00:08]} 53. Kc4 {[%emt 0:00:01]} Re4+ {[%emt 0:00:59]} 54. Kd3 {[%emt 0:00:08]} Re1 {[%emt 0:01:27]} 55. Rxd7+ {[%emt 0:00:30]} Kc8 {[%emt 0:00:30]} 56. Rxg7 {[%emt 0:00:00]} Rd1+ {[%emt 0:00:00]} 57. Kc4 {[%emt 0:00:38]} Rc1+ {[%emt 0:00:00]} 58. Kd4 {[%emt 0:00:00]} Rg1 {[%emt 0:00:00]} 59. Ke5 {[%emt 0:01:07]} h5 {[%emt 0:00:28]} 60. Kf4 {[%emt 0:00:30]} Rb1 {[%emt 0:00:26]} 61. Rg5 {[%emt 0:00:31]} Rb4+ {[%emt 0:00:09]} 62. Ke3 {[%emt 0:00:14]} Rb3+ {[%emt 0:00:30]} 63. Bd3 {[%emt 0:00:00]} Kc7 {[%emt 0:00:27]} 64. Rxh5 {[%emt 0:00:12]} Kc6 {[%emt 0:00:13]} 65. Rg5 {[%emt 0:00:00]} b5 {[%emt 0:00:11]} 66. Rxb5 {[%emt 0:00:02]} Ra3 {[%emt 0:01:31]} 67. Rf5 {[%emt 0:00:30]} Kd6 {[%emt 0:00:30]} 68. h5 {[%emt 0:00:30]} Ke6 {[%emt 0:00:30]} 69. g4 {[%emt 0:00:30]} Rc3 {[%emt 0:00:30]} 70. h6 {[%emt 0:00:00]} Rc1 {[%emt 0:00:38]} 71. h7 {[%emt 0:00:06]} Rh1 {[%emt 0:00:12]} 72. Rh5 {[%emt 0:00:09]} Rxh5 {[%emt 0:00:14]} 73. gxh5 {[%emt 0:00:02]} Kf7 {[%emt 0:00:06]} 74. h8=Q {[%emt 0:00:12]} Ke7 {[%emt 0:00:03]} 75. Ke4 {[%emt 0:00:06]} 1-0

[Event "4th Baskent University Open 2019"]
[Site "Ankara"]
[Date "2019.06.21"]
[Round "7"]
[White "Duru, Ipek"]
[Black "Elma, Muge"]
[Result "1/2-1/2"]
[ECO "B25"]
[WhiteElo "1551"]
[BlackElo "1618"]
[Annotator "NA"]
[PlyCount "45"]
[EventDate "2019.06.18"]
[EventType "swiss"]
[EventCountry "TUR"]
[SourceTitle "playchess.com"]
[Source "ChessBase"]
[SourceQuality "1"]
[TimeControl "5400+30"]

1. e4 {[%emt 0:00:30]} c5 {[%emt 0:00:30]} 2. Nc3 {[%emt 0:00:30]} d6 {[%emt 0:00:30]} 3. g3 {[%emt 0:00:00]} g6 {[%emt 0:00:00]} 4. Bg2 {[%emt 0:00:00]} Bg7 {[%emt 0:00:00]} 5. d3 {[%emt 0:00:30]} Nc6 {[%emt 0:00:30]} 6. f4 {[%emt 0:00:30]} e6 {[%emt 0:00:30]} 7. Nf3 {[%emt 0:00:30]} Nge7 {[%emt 0:00:00]} 8. O-O {[%emt 0:00:00]} O-O {[%emt 0:00:00]} 9. Be3 {[%emt 0:00:00]} Nd4 {[%emt 0:00:00]} 10. Rb1 {[%emt 0:00:00]} Rb8 {[%emt 0:00:00]} 11. Ne2 {[%emt 0:01:00]} Nxf3+ {[%emt 0:00:30]} 12. Bxf3 {[%emt 0:00:00]} b6 {[%emt 0:00:30]} 13. d4 {[%emt 0:02:00]} Bb7 {[%emt 0:05:30]} 14. Qd2 {[%emt 0:04:30]} cxd4 {[%emt 0:06:30]} 15. Nxd4 {[%emt 0:01:30]} d5 {[%emt 0:00:30]} 16. e5 {[%emt 0:01:30]} Qd7 {[%emt 0:07:30]} 17. Bg4 {[%emt 0:01:30]} Nc6 {[%emt 0:00:30]} 18. Nxc6 {[%emt 0:01:30]} Qxc6 {[%emt 0:01:30]} 19. Bd4 {[%emt 0:00:30]} Rbc8 {[%emt 0:01:30]} 20. c3 {[%emt 0:01:30]} a5 {[%emt 0:01:30]} 21. Be2 {[%emt 0:02:30]} f6 {[%emt 0:08:30]} 22. Bd3 {[%emt 0:00:30]} f5 {[%emt 0:16:30]} 23. Qe2 {[%emt 0:00:30]} 1/2-1/2

[Event "4th Baskent University Open 2019"]
[Site "Ankara"]
[Date "2019.06.21"]
[Round "7"]
[White "Sungu, Yagiz Kaan"]
[Black "Celik, Meric"]
[Result "1/2-1/2"]
[ECO "B41"]
[WhiteElo "1465"]
[BlackElo "1650"]
[Annotator "NA RC"]
[PlyCount "93"]
[EventDate "2019.06.18"]
[EventType "swiss"]
[EventCountry "TUR"]
[SourceTitle "playchess.com"]
[Source "ChessBase"]
[SourceQuality "1"]
[TimeControl "5400+30"]

1. e4 {[%emt 0:00:30]} c5 {[%emt 0:00:30]} 2. Nf3 {[%emt 0:00:30]} e6 {[%emt 0:00:30]} 3. d4 {[%emt 0:00:30]} cxd4 {[%emt 0:00:30]} 4. Nxd4 {[%emt 0:00:30]} a6 {[%emt 0:00:00]} 5. c4 {[%emt 0:00:00]} Nf6 {[%emt 0:00:00]} 6. f3 {[%emt 0:00:00]} Qc7 {[%emt 0:01:30]} 7. Nc3 {[%emt 0:01:30]} Bc5 {[%emt 0:01:30]} 8. Be3 {[%emt 0:03:30]} d6 {[%emt 0:01:30]} 9. Qd2 {[%emt 0:02:30]} O-O {[%emt 0:06:30]} 10. Be2 {[%emt 0:03:30]} e5 {[%emt 0:14:30]} 11. Nc2 {[%emt 0:03:30]} Bxe3 {[%emt 0:05:30]} 12. Nxe3 {[%emt 0:09:30]} Be6 {[%emt 0:00:30]} 13. Ncd5 {[%emt 0:02:30]} Nxd5 {[%emt 0:17:30]} 14. cxd5 {[%emt 0:08:30]} Bc8 {[%emt 0:00:30]} 15. Rc1 {[%emt 0:01:30]} Qe7 {[%emt 0:04:30]} 16. O-O {[%emt 0:03:30]} Nd7 {[%emt 0:11:30]} 17. Nf5 {[%emt 0:04:30]} Qf6 {[%emt 0:00:00]} 18. g4 {[%emt 0:00:30]} g6 {[%emt 0:04:00]} 19. g5 {[%emt 0:01:30]} Qd8 {[%emt 0:00:30]} 20. Nh6+ {[%emt 0:02:30]} Kg7 {[%emt 0:00:30]} 21. Ng4 {[%emt 0:01:30]} f5 {[%emt 0:02:30]} 22. gxf6+ {[%emt 0:03:30]} Nxf6 {[%emt 0:00:30]} 23. Nxf6 {[%emt 0:12:30]} Qb6+ {[%emt 0:01:30]} 24. Kg2 {[%emt 0:00:30]} Rxf6 {[%emt 0:00:30]} 25. f4 {[%emt 0:00:30]} Bd7 {[%emt 0:03:30]} 26. fxe5 {[%emt 0:02:30]} Rxf1 {[%emt 0:01:30]} 27. Bxf1 {[%emt 0:11:58]} dxe5 {[%emt 0:00:30]} 28. Qc3 {[%emt 0:01:08]} Qf6 {[%emt 0:01:41]} 29. Qg3 {[%emt 0:06:34]} Rc8 {[%emt 0:02:29]} 30. Rxc8 {[%emt 0:02:12]} Bxc8 {[%emt 0:00:01]} 31. Be2 {[%emt 0:01:14]} Kh6 {[%emt 0:03:12]} 32. Bg4 {[%emt 0:01:00]} Bxg4 {[%emt 0:04:31]} 33. Qxg4 {[%emt 0:00:02]} b5 {[%emt 0:00:44]} 34. Kg3 {[%emt 0:03:53]} Kg7 {[%emt 0:00:43]} 35. Qd7+ {[%emt 0:00:42]} Kh6 {[%emt 0:00:35]} 36. Qh3+ {[%emt 0:00:30]} Kg7 {[%emt 0:00:00]} 37. Qd7+ {[%emt 0:00:40]} Kh6 {[%emt 0:00:06]} 38. Qg4 {[%emt 0:00:00]} Kg7 {[%emt 0:00:00]} 39. h4 {[%emt 0:00:14]} Qf1 {[%emt 0:02:17]} 40. Qg5 {[%emt 0:03:08]} Qe1+ {[%emt 0:00:56]} 41. Kf3 {[%emt 0:00:50]} Qd1+ {[%emt 0:00:57]} 42. Ke3 {[%emt 0:02:24]} Qd4+ {[%emt 0:00:15]} 43. Kf3 {[%emt 0:00:09]} Qd1+ {[%emt 0:03:13]} 44. Ke3 {[%emt 0:01:07]} Qd4+ {[%emt 0:00:57]} 45. Kf3 {[%emt 0:00:30]} Qd1+ {[%emt 0:00:08]} 46. Ke3 {[%emt 0:00:00]} Qc1+ {[%emt 0:00:48]} 47. Kf3 {[%emt 0:00:14]} 1/2-1/2

[Event "4th Baskent University Open 2019"]
[Site "Ankara"]
[Date "2019.06.21"]
[Round "8"]
[White "Annaberdiev, Meilis"]
[Black "Arat, Ufuk Sezen"]
[Result "1/2-1/2"]
[ECO "D02"]
[WhiteElo "2532"]
[BlackElo "2368"]
[Annotator "ChessBase"]
[PlyCount "59"]
[EventDate "2019.06.18"]
[EventType "swiss"]
[EventCountry "TUR"]
[SourceTitle "playchess.com"]
[Source "ChessBase"]
[SourceQuality "1"]
[TimeControl "5400+30"]

1. d4 {[%emt 0:00:30]} d5 {[%emt 0:05:30]} 2. Bf4 {[%emt 0:00:30]} Nf6 {[%emt 0:00:30]} 3. e3 {[%emt 0:00:00]} e6 {[%emt 0:00:30]} 4. Nd2 {[%emt 0:01:00]} Bd6 {[%emt 0:03:30]} 5. Bg3 {[%emt 0:00:30]} O-O {[%emt 0:00:30]} 6. Ngf3 {[%emt 0:00:00]} b6 {[%emt 0:02:30]} 7. Ne5 {[%emt 0:07:00]} c5 {[%emt 0:03:30]} 8. Bh4 {[%emt 0:05:30]} Be7 {[%emt 0:08:30]} 9. c3 {[%emt 0:10:30]} Nfd7 {[%emt 0:05:30]} 10. Nxd7 {[%emt 0:02:30]} Qxd7 {[%emt 0:02:30]} 11. Bg3 {[%emt 0:00:30]} Ba6 {[%emt 0:01:30]} 12. Bxa6 {[%emt 0:04:30]} Nxa6 {[%emt 0:00:30]} 13. O-O {[%emt 0:00:00]} Bd6 {[%emt 0:06:30]} 14. Bxd6 {[%emt 0:02:00]} Qxd6 {[%emt 0:00:30]} 15. Qe2 {[%emt 0:00:30]} Nc7 {[%emt 0:06:30]} 16. Rfd1 {[%emt 0:00:30]} e5 {[%emt 0:08:30]} 17. dxe5 {[%emt 0:11:30]} Qxe5 {[%emt 0:00:00]} 18. Nf3 {[%emt 0:00:30]} Qe7 {[%emt 0:05:00]} 19. Qc2 {[%emt 0:00:30]} Rad8 {[%emt 0:00:30]} 20. Qa4 {[%emt 0:02:30]} Ne6 {[%emt 0:01:30]} 21. Rd2 {[%emt 0:02:30]} Rd6 {[%emt 0:03:30]} 22. Rad1 {[%emt 0:00:30]} Rfd8 {[%emt 0:00:30]} 23. Qg4 {[%emt 0:05:30]} g6 {[%emt 0:04:30]} 24. Qg3 {[%emt 0:06:30]} Ng7 {[%emt 0:06:30]} 25. h4 {[%emt 0:01:30]} Nf5 {[%emt 0:02:30]} 26. Qf4 {[%emt 0:10:30]} Qe4 {[%emt 0:00:30]} 27. g4 {[%emt 0:01:30]} Qxf4 {[%emt 0:02:00]} 28. exf4 {[%emt 0:00:30]} Ng7 {[%emt 0:00:30]} 29. Ne5 {[%emt 0:00:30]} Ne6 {[%emt 0:00:30]} 30. Nc4 {[%emt 0:00:30]} 1/2-1/2

[Event "4th Baskent University Open 2019"]
[Site "Ankara"]
[Date "2019.06.21"]
[Round "8"]
[White "Maghalashvili, Davit"]
[Black "Kazimova, Narmin"]
[Result "1/2-1/2"]
[ECO "A34"]
[WhiteElo "2500"]
[BlackElo "2271"]
[Annotator "ChessBase"]
[PlyCount "118"]
[EventDate "2019.06.18"]
[EventType "swiss"]
[EventCountry "TUR"]
[SourceTitle "playchess.com"]
[Source "ChessBase"]
[SourceQuality "1"]
[TimeControl "5400+30"]

1. Nf3 {[%emt 0:00:30]} c5 {[%emt 0:01:30]} 2. c4 {[%emt 0:00:00]} Nc6 {[%emt 0:00:30]} 3. g3 {[%emt 0:00:00]} e5 {[%emt 0:00:30]} 4. Nc3 {[%emt 0:00:30]} Nf6 {[%emt 0:00:30]} 5. Bg2 {[%emt 0:00:00]} d6 {[%emt 0:00:30]} 6. d3 {[%emt 0:00:00]} Be7 {[%emt 0:00:30]} 7. Bg5 {[%emt 0:00:30]} O-O {[%emt 0:00:30]} 8. Bxf6 {[%emt 0:00:30]} Bxf6 {[%emt 0:00:30]} 9. O-O {[%emt 0:00:30]} Be6 {[%emt 0:02:30]} 10. Ne1 {[%emt 0:01:30]} Qd7 {[%emt 0:02:30]} 11. Nd5 {[%emt 0:01:30]} Be7 {[%emt 0:10:30]} 12. Nc2 {[%emt 0:07:30]} f5 {[%emt 0:02:30]} 13. Rb1 {[%emt 0:01:30]} Rae8 {[%emt 0:11:30]} 14. b4 {[%emt 0:00:30]} Kh8 {[%emt 0:05:30]} 15. bxc5 {[%emt 0:06:30]} dxc5 {[%emt 0:00:30]} 16. e3 {[%emt 0:03:30]} Bd6 {[%emt 0:07:30]} 17. Na3 {[%emt 0:13:30]} f4 {[%emt 0:05:30]} 18. Nb5 {[%emt 0:00:30]} Bb8 {[%emt 0:00:30]} 19. Nbc3 {[%emt 0:01:30]} Bh3 {[%emt 0:03:30]} 20. Rxb7 {[%emt 0:04:30]} Qxb7 {[%emt 0:00:30]} 21. Bxh3 {[%emt 0:00:30]} Nb4 {[%emt 0:12:30]} 22. Bg2 {[%emt 0:01:30]} Qf7 {[%emt 0:01:30]} 23. Ne4 {[%emt 0:03:30]} Nxd5 {[%emt 0:00:30]} 24. cxd5 {[%emt 0:00:30]} h6 {[%emt 0:06:30]} 25. Bf3 {[%emt 0:01:30]} Rd8 {[%emt 0:07:30]} 26. Nxc5 {[%emt 0:02:30]} Rxd5 {[%emt 0:00:03]} 27. Bxd5 {[%emt 0:00:30]} Qxd5 {[%emt 0:00:02]} 28. Ne4 {[%emt 0:00:30]} Qxa2 {[%emt 0:01:24]} 29. Qb1 {[%emt 0:02:30]} Qd5 {[%emt 0:05:29]} 30. Rc1 {[%emt 0:01:30]} Bd6 {[%emt 0:02:16]} 31. Qc2 {[%emt 0:00:30]} Be7 {[%emt 0:04:12]} 32. Qc4 {[%emt 0:08:30]} Qd7 {[%emt 0:03:03]} 33. Qc7 {[%emt 0:00:30]} Qxc7 {[%emt 0:00:30]} 34. Rxc7 {[%emt 0:00:30]} fxe3 {[%emt 0:00:03]} 35. fxe3 {[%emt 0:01:30]} Bd8 {[%emt 0:00:03]} 36. Rxa7 {[%emt 0:01:30]} Bb6 {[%emt 0:00:04]} 37. Rd7 {[%emt 0:02:30]} Bxe3+ {[%emt 0:00:10]} 38. Kg2 {[%emt 0:00:00]} Bd4 {[%emt 0:00:22]} 39. g4 {[%emt 0:00:00]} Ra8 {[%emt 0:00:34]} 40. h4 {[%emt 0:01:30]} Kg8 {[%emt 0:02:57]} 41. Nd6 {[%emt 0:00:30]} Ra2+ {[%emt 0:01:12]} 42. Kg3 {[%emt 0:00:30]} Rd2 {[%emt 0:00:20]} 43. Nf5 {[%emt 0:04:30]} Rxd3+ {[%emt 0:00:02]} 44. Kg2 {[%emt 0:00:30]} Rd2+ {[%emt 0:00:56]} 45. Kf3 {[%emt 0:01:30]} e4+ {[%emt 0:01:17]} 46. Kxe4 {[%emt 0:00:30]} Bc3 {[%emt 0:00:01]} 47. Ne7+ {[%emt 0:00:30]} Kf8 {[%emt 0:01:20]} 48. Nd5 {[%emt 0:04:30]} Rd4+ {[%emt 0:00:29]} 49. Ke5 {[%emt 0:01:30]} Bb2 {[%emt 0:00:18]} 50. Ke6 {[%emt 0:00:30]} Re4+ {[%emt 0:00:18]} 51. Kf5 {[%emt 0:00:30]} Re5+ {[%emt 0:01:02]} 52. Kg6 {[%emt 0:00:30]} Ke8 {[%emt 0:00:30]} 53. Rd6 {[%emt 0:03:30]} Re4 {[%emt 0:00:30]} 54. Kf5 {[%emt 0:08:07]} Re5+ {[%emt 0:00:01]} 55. Kf4 {[%emt 0:00:00]} g5+ {[%emt 0:00:32]} 56. hxg5 {[%emt 0:00:59]} hxg5+ {[%emt 0:00:39]} 57. Kf3 {[%emt 0:00:05]} Ba3 {[%emt 0:00:24]} 58. Nf6+ {[%emt 0:00:29]} Kf7 {[%emt 0:00:28]} 59. Ra6 {[%emt 0:00:19]} Re6 {[%emt 0:00:14]} 1/2-1/2